[Event "Serbian League 2024"]
[Site "Bajina Basta"]
[Date "2024.09.28"]
[Round "2.25"]
[White "Krstulovic, Alex"]
[Black "Nadj Hedjesi, Balind"]
[Result "0-1"]
[ECO "E90"]
[WhiteElo "2452"]
[BlackElo "2212"]
[Annotator "TA"]
[PlyCount "60"]
[EventDate "2024.09.26"]
[EventType "team-tourn"]
[EventCountry "SRB"]
[SourceTitle "playchess.com"]
[Source "ChessBase"]
[SourceQuality "1"]
[TimeControl "40/5400+30:1800+30"]

{[%evp 12,60,54,49,63,63,64,50,54,50,70,51,68,58,72,72,74,64,75,81,69,71,70,-108,-80,-109,-84,-403,-571,-427,-142,-431,-420,-431,-442,-442,-438,-441,-436,-489,-475,-598,-614,-628,-616,-686,-630,-803,-770,-910,-902]} 1. d4 {[%emt 0:00:07]} d6 {[%emt 0:00:33]} 2. Nf3 {[%emt 0:00:07]} Nf6 {[%emt 0:00:14]} 3. c4 {[%emt 0:00:15]} g6 {[%emt 0:00:06]} 4. Nc3 {[%emt 0:00:07]} Bg7 {[%emt 0:00:05]} 5. e4 {[%emt 0:00:04]} Bg4 {[%emt 0:00:21]} 6. Be2 {[%emt 0:00:08]} Bxf3 {[%emt 0:00:10]} 7. Bxf3 {[%emt 0:02:07]} e5 {[%emt 0:00:15]} 8. d5 {[%emt 0:00:04]} h5 {[%emt 0:00:31]} 9. Qb3 {[%emt 0:00:04]} b6 {[%emt 0:01:11] Weiß steht etwas besser.} 10. h4 {[%emt 0:02:35]} Nbd7 {[%emt 0:02:01]} 11. g3 {[%emt 0:04:22]} a5 {[%emt 0:03:05]} 12. Qc2 {[%emt 0:04:02]} Bh6 {[%emt 0:01:07]} 13. Bxh6 {[%emt 0:00:11]} Rxh6 {[%emt 0:00:02]} 14. Qd2 {[%emt 0:08:39]} Rh8 {[%emt 0:01:06]} 15. Bd1 {[%emt 0:00:10]} Nc5 {[%emt 0:05:06]} 16. Bc2 {[%emt 0:00:21]} Qd7 {[%emt 0:07:38]} 17. O-O $2 {[%emt 0:03:11]} (17. Kf1 $14 {bleibt weiter vorne.}) 17... Qh3 $17 {[%emt 0:03:14] [#] Weiss muss nun ...Ng4 beachten.} 18. Rfe1 {[%emt 0:18:03]} Ng4 {[%emt 0:20:41] Und jetzt ...Qh2+ wäre schön. Schwarz steht aktiver. Hervorragende Reitkunst.} 19. Bd1 $2 {[%emt 0:00:11][%mdl 8192]} (19. f3 $17 Qxg3+ 20. Qg2 Qxg2+ (20... Qxh4 $2 21. fxg4 hxg4 22. Rf1 $19) 21. Kxg2) 19... Qh2+ $19 {[%emt 0:15:12]} 20. Kf1 {[%emt 0:00:10]} Qh1+ $40 {[%emt 0:00:22][%mdl 128] Weiss ist in Schwierigkeiten.} 21. Ke2 {[%emt 0:00:05] Der Zug kostet die Partie für Weiß.} Qg2 {[%emt 0:00:14][%csl Gg4][%cal Rg2f2] [#]} 22. Bc2 {[%emt 0:27:27]} Qxf2+ {[%emt 0:08:46] Schwarz steht klar auf Gewinn.} (22... Nxf2 23. Rg1 Qh2 (23... Nfxe4+ 24. Rxg2 Nxd2 25. Kxd2 $18) 24. Kf1 $11) 23. Kd1 {[%emt 0:00:06]} Qxg3 {[%emt 0:00:42]} 24. Kc1 {[%emt 0:00:05]} Qxh4 {[%emt 0:06:08]} 25. Nb5 {[%emt 0:00:09]} O-O-O {[%emt 0:02:27]} 26. Na7+ {[%emt 0:05:55]} Kb7 {[%emt 0:01:05]} 27. Nc6 {[%emt 0:00:06]} Ra8 {[%emt 0:00:40]} 28. Rf1 {[%emt 0:01:41]} Qh3 {[%emt 0:03:46]} 29. Re1 {[%emt 0:00:42]} Qg3 {[%emt 0:01:13] Und ...h4 würde nun gewinnen.} 30. Kb1 {[%emt 0:00:21]} h4 {[%emt 0:01:37] Gewichteter Fehlerwert: Weiß=0.73/Schwarz=0.07 (makellos) .  Verlustzug:     	Weiß=2     	---        Fehler:       	Weiß=1     	---        OK:         	Weiß=6     	Schwarz=13    Bester:       	Weiß=1     	Schwarz=1} 0-1

[Event "Serbian League 2024"]
[Site "Bajina Basta"]
[Date "2024.09.28"]
[Round "2.26"]
[White "Yilmaz, Baver"]
[Black "Popovic, Dusan"]
[Result "0-1"]
[ECO "B06"]
[WhiteElo "2202"]
[BlackElo "2494"]
[Annotator "TA"]
[PlyCount "112"]
[EventDate "2024.09.26"]
[EventType "team-tourn"]
[EventCountry "SRB"]
[SourceTitle "playchess.com"]
[Source "ChessBase"]
[SourceQuality "1"]
[TimeControl "40/5400+30:1800+30"]

{[%evp 16,112,0,-18,-4,-6,0,0,0,0,18,24,8,9,31,9,32,8,26,41,34,0,0,-27,-24,-16,-26,-16,-22,-20,-16,-18,-19,-32,-17,-51,-47,-61,-42,-59,-39,-50,-15,-29,-33,-67,-58,-66,-62,-96,-38,-118,-121,-115,-87,-119,-119,-211,-127,-191,-128,-256,-207,-258,0,-227,0,-290,-149,-173,-158,-429,-447,-528,-519,-581,-593,-557,-302,-337,-352,-344,-260,-372,-360,-595,-529,-29975,-29976,-29976,-29977,-29976,-29977,-29977,-29978,-29976,-29958,-29974,-29975]} 1. e4 {[%emt 0:00:16]} g6 {[%emt 0:00:09]} 2. d4 {[%emt 0:00:23]} Bg7 {[%emt 0:00:06]} 3. Nf3 {[%emt 0:00:11]} d6 {[%emt 0:00:37]} 4. Nc3 {[%emt 0:00:24]} a6 {[%emt 0:01:14]} 5. Be3 {[%emt 0:01:16]} b5 {[%emt 0:01:34]} 6. Bd3 {[%emt 0:00:56]} Bb7 {[%emt 0:01:31]} 7. a3 {[%emt 0:02:46] 7.a4 is setting a new trend. B06: Modern Defence.} Nd7 {[%emt 0:01:32]} 8. O-O {[%emt 0:03:12]} c5 {[%emt 0:02:53]} 9. Re1 {[%emt 0:02:42]} cxd4 {[%emt 0:02:08]} 10. Bxd4 {[%emt 0:02:32]} Bxd4 $146 {[%emt 0:13:26]} (10... e5 $5 11. Be3 $8 Ngf6 $11) ({Predecessor:} 10... Ngf6 11. e5 Bxf3 12. Qxf3 dxe5 13. Bxe5 Nxe5 14. Rxe5 O-O 15. Nd5 Nxd5 16. Rxd5 Qc7 {½-½ Llapasset,J (2086)-Di Nicolantonio,L (2399) Europe Echecs online op March blitz 2020 (2)}) 11. Nxd4 {[%emt 0:00:07]} Ngf6 {[%emt 0:00:03]} 12. Qd2 {[%emt 0:04:16]} e5 {[%emt 0:25:21]} 13. Nb3 {[%emt 0:02:57]} O-O {[%emt 0:04:08]} 14. f3 {[%emt 0:03:38]} Nc5 {[%emt 0:03:05]} 15. Rad1 {[%emt 0:06:16]} Qe7 {[%emt 0:07:10]} 16. Na5 {[%emt 0:04:13]} Rac8 {[%emt 0:01:58]} (16... Rfd8 $5) 17. Bf1 {[%emt 0:03:24]} Rfd8 {[%emt 0:00:16]} 18. Nxb7 {[%emt 0:07:47]} Qxb7 {[%emt 0:00:08]} 19. Nd5 {[%emt 0:05:01]} Nxd5 {[%emt 0:00:56]} 20. Qxd5 {[%emt 0:00:50]} Qxd5 {[%emt 0:03:36]} (20... Qb6 $5 21. Kh1 $8 Ne6 $15) 21. Rxd5 {[%emt 0:00:53]} Na4 {[%emt 0:07:32]} 22. b3 {[%emt 0:01:09]} Nc3 {[%emt 0:02:22]} 23. Rd2 {[%emt 0:03:13]} Kg7 {[%emt 0:03:03]} 24. g3 {[%emt 0:01:56]} Rc5 {[%emt 0:02:22]} 25. Kf2 {[%emt 0:02:28]} f5 {[%emt 0:03:14]} 26. Bd3 {[%emt 0:03:57]} Kf6 {[%emt 0:00:58]} 27. exf5 {[%emt 0:03:44]} gxf5 {[%emt 0:00:15]} 28. g4 $1 {[%emt 0:01:30]} fxg4 {[%emt 0:05:52]} 29. fxg4 {[%emt 0:00:13]} Rd5 {[%emt 0:03:28]} 30. Kg3 {[%emt 0:04:55]} e4 {[%emt 0:01:44]} 31. Rf2+ {[%emt 0:00:33]} Kg7 $1 {[%emt 0:01:23]} (31... Ke5 32. Rf4 Rd4 33. Rf5+ Ke6 34. Kf2 $16) 32. Bf1 {[%emt 0:01:39]} (32. Bxe4 $2 Re5 33. Rfe2 (33. Rf4 $2 d5 $19) 33... Nxe2+ 34. Rxe2 Rde8 $19) 32... Re5 {[%emt 0:00:30]} ({Black should play} 32... Rd1 $17 33. Rxd1 Nxd1) 33. Bg2 {[%emt 0:02:04]} ({Better is} 33. h4 $15) 33... d5 $17 {[%emt 0:00:42]} 34. h4 {[%emt 0:02:14]} d4 {[%emt 0:01:08]} 35. Rd2 {[%emt 0:01:31]} h6 {[%emt 0:00:54]} 36. Bh1 {[%emt 0:01:43]} (36. b4 $17 {was worth a try.}) 36... Ree8 {[%emt 0:00:31]} 37. Bg2 {[%emt 0:00:51] [#]} (37. b4 $17 {was called for.}) 37... a5 {[%emt 0:00:36]} (37... e3 $1 $19 {[%cal Re3d2]} 38. Rd3 a5) 38. Bh1 {[%emt 0:00:38]} (38. Rf2 $17) 38... Re7 {[%emt 0:00:31]} 39. Bg2 {[%emt 0:00:46]} Ree8 {[%emt 0:00:20]} 40. Bh1 $1 {[%emt 0:00:32]} Re7 {[%emt 0:00:38]} 41. Bg2 {[%emt 0:32:05] [#]} b4 {[%emt 0:04:34]} (41... e3 $1 $19 {[%cal Re3d2]} 42. Rd3 b4 43. axb4 axb4) 42. axb4 $17 {[%emt 0:00:00]} axb4 {[%emt 0:00:06]} 43. Bh1 $2 {[%emt 0:00:00]} (43. Bf1 $17) 43... e3 $19 {[%emt 0:05:53]} 44. Rd3 {[%emt 0:00:00]} Rf7 {[%emt 0:00:25]} 45. Bf3 {[%emt 0:00:00]} Rdf8 {[%emt 0:01:23]} 46. Bg2 {[%emt 0:00:00]} Rf2 {[%emt 0:12:40]} 47. Rxd4 {[%emt 0:00:00]} Ne2+ {[%emt 0:04:07]} ({Inferior is} 47... Rxc2 48. Rxb4 (48. Rxe3 Ne2+ 49. Rxe2 Rxe2 $11) (48. Rd7+ Rf7 $11) 48... Ne2+ 49. Kh3 $11) 48. Rxe2 {[%emt 0:00:00]} Rxe2 {[%emt 0:00:02]} 49. Rxb4 {[%emt 0:00:00]} (49. Rd7+ {was forced.} Rf7 50. Rxf7+ Kxf7 51. Bd5+ Kf6 52. Kf3 Rxc2 53. Kxe3) 49... Re8 $19 {[%emt 0:00:35]} ({Resist} 49... Rxc2 50. Rb7+ Kh8 51. Re7 $19) 50. Bf3 $2 {[%emt 0:00:00]} (50. Rb7+ Kh8 51. Bf1) 50... Rf2 {[%emt 0:02:19]} 51. Be4 {[%emt 0:00:00]} Rf7 {[%emt 0:00:21]} 52. Bd3 {[%emt 0:00:00]} e2 {[%emt 0:00:05]} 53. Bxe2 {[%emt 0:00:00]} Re3+ {[%emt 0:00:18]} 54. Kg2 {[%emt 0:00:00]} Rxe2+ {[%emt 0:00:04]} 55. Kg3 {[%emt 0:00:00]} Rxc2 {[%emt 0:00:07]} 56. g5 {[%emt 0:00:00]} h5 {[%emt 0:00:26]} 0-1

[Event "Serbian League 2024"]
[Site "Bajina Basta"]
[Date "2024.09.28"]
[Round "2.27"]
[White "Sedlak, Nikola"]
[Black "Szalai, Kornel"]
[Result "1-0"]
[ECO "B50"]
[WhiteElo "2401"]
[BlackElo "2388"]
[Annotator "ChessBase"]
[PlyCount "99"]
[EventDate "2024.09.26"]
[EventType "team-tourn"]
[EventCountry "SRB"]
[SourceTitle "playchess.com"]
[Source "ChessBase"]
[SourceQuality "1"]
[TimeControl "40/5400+30:1800+30"]

1. e4 {[%emt 0:00:45]} c5 {[%emt 0:00:39]} 2. Nf3 {[%emt 0:00:09]} d6 {[%emt 0:02:09]} 3. Bc4 {[%emt 0:00:22]} Nf6 {[%emt 0:04:13]} 4. d3 {[%emt 0:00:38]} e6 {[%emt 0:02:36]} 5. Bb3 {[%emt 0:01:21]} Be7 {[%emt 0:05:56]} 6. c3 {[%emt 0:00:36]} Nbd7 {[%emt 0:12:24]} 7. a4 {[%emt 0:01:08]} b6 {[%emt 0:01:01]} 8. O-O {[%emt 0:00:34]} Bb7 {[%emt 0:00:09]} 9. Re1 {[%emt 0:00:51]} Qc7 {[%emt 0:00:32]} 10. Bf4 {[%emt 0:06:22]} h6 {[%emt 0:03:45]} 11. Na3 {[%emt 0:03:57]} a6 {[%emt 0:03:23]} 12. h3 {[%emt 0:01:35]} g5 {[%emt 0:12:49]} 13. Bg3 {[%emt 0:00:18]} Nh5 {[%emt 0:06:11]} 14. Bh2 {[%emt 0:00:58]} Nf4 {[%emt 0:01:02]} 15. d4 {[%emt 0:01:42]} Nf6 {[%emt 0:05:12]} 16. Bxf4 {[%emt 0:01:49]} gxf4 {[%emt 0:00:04]} 17. d5 {[%emt 0:11:12]} e5 {[%emt 0:03:27]} 18. Bc4 {[%emt 0:03:40]} Nd7 {[%emt 0:06:30]} 19. b4 {[%emt 0:03:58]} Bf6 {[%emt 0:00:31]} 20. Bf1 {[%emt 0:01:49]} Ke7 {[%emt 0:01:01]} 21. Nc4 {[%emt 0:07:32]} Rag8 {[%emt 0:02:00]} 22. bxc5 {[%emt 0:02:34]} Qxc5 {[%emt 0:09:05]} 23. Rb1 {[%emt 0:02:28]} Rg3 {[%emt 0:03:02]} 24. Rb2 {[%emt 0:11:22]} Rhg8 {[%emt 0:03:07]} 25. Kh1 {[%emt 0:03:26]} Rxg2 {[%emt 0:00:39]} 26. Bxg2 {[%emt 0:00:08]} Qxc4 {[%emt 0:00:04]} 27. Qb3 {[%emt 0:02:03]} Rc8 {[%emt 0:02:53]} 28. h4 {[%emt 0:07:20]} Qd3 {[%emt 0:05:55]} 29. c4 {[%emt 0:09:28]} Qxb3 {[%emt 0:02:07]} 30. Rxb3 {[%emt 0:00:05]} Rxc4 {[%emt 0:01:28]} 31. Bh3 {[%emt 0:00:09]} Bc8 {[%emt 0:00:57]} 32. Bxd7 {[%emt 0:00:18]} Bxd7 {[%emt 0:00:18]} 33. Rxb6 {[%emt 0:00:05]} Bxa4 {[%emt 0:00:16]} 34. Rxa6 {[%emt 0:01:22]} Bc2 {[%emt 0:00:33]} 35. Rc1 {[%emt 0:02:22]} Bd3 {[%emt 0:01:05]} 36. Ra7+ {[%emt 0:00:24]} Kf8 {[%emt 0:00:31]} 37. Rxc4 {[%emt 0:01:41]} Bxc4 {[%emt 0:00:04]} 38. h5 {[%emt 0:01:52]} Bd3 {[%emt 0:00:36]} 39. Nd2 {[%emt 0:00:43]} f3 {[%emt 0:00:36]} 40. Ra3 {[%emt 0:00:20]} Bc2 {[%emt 0:00:46]} 41. Rc3 {[%emt 0:30:22]} Bd1 {[%emt 0:30:51]} 42. Nc4 {[%emt 0:05:00]} Be7 {[%emt 0:00:00]} 43. Ne3 {[%emt 0:00:00]} Ba4 {[%emt 0:00:00]} 44. Rc8+ {[%emt 0:00:00]} Kg7 {[%emt 0:00:00]} 45. Nf5+ {[%emt 0:00:00]} Kf6 {[%emt 0:00:00]} 46. Nxh6 {[%emt 0:00:00]} Kg5 {[%emt 0:00:00]} 47. Ng8 {[%emt 0:00:00]} Bf6 {[%emt 0:00:00]} 48. Nxf6 {[%emt 0:00:00]} Kxf6 {[%emt 0:00:00]} 49. Rg8 {[%emt 0:00:00]} Bc2 {[%emt 0:00:00]} 50. Rg4 {[%emt 0:00:00]} 1-0

[Event "Serbian League 2024"]
[Site "Bajina Basta"]
[Date "2024.09.28"]
[Round "2.28"]
[White "Farkas, Tibor"]
[Black "Stojanovic, Dalibor"]
[Result "1-0"]
[ECO "B56"]
[WhiteElo "2209"]
[BlackElo "2448"]
[Annotator "TA"]
[PlyCount "68"]
[EventDate "2024.09.26"]
[EventType "team-tourn"]
[EventCountry "SRB"]
[SourceTitle "playchess.com"]
[Source "ChessBase"]
[SourceQuality "1"]
[TimeControl "40/5400+30:1800+30"]

{[%evp 12,68,14,0,0,0,3,7,0,0,58,44,50,47,77,75,123,122,119,126,120,114,197,224,197,177,215,219,254,261,260,222,241,232,433,451,483,490,630,627,759,754,1345,1244,1346,1307,2546,2502,29988,2423,29985,29986,29987,29988,29990,29991,29991,29992,29999]} 1. e4 {[%emt 0:03:52]} c5 {[%emt 0:00:25]} 2. Nf3 {[%emt 0:00:21]} Nc6 {[%emt 0:00:13]} 3. d4 {[%emt 0:00:52]} cxd4 {[%emt 0:00:05]} 4. Nxd4 {[%emt 0:00:23]} Nf6 {[%emt 0:00:14]} 5. Nc3 {[%emt 0:00:25]} d6 {[%emt 0:00:17]} 6. f3 {[%emt 0:05:03]} e5 {[%emt 0:03:45]} 7. Nde2 {[%emt 0:02:48]} Be7 {[%emt 0:02:40]} 8. Be3 {[%emt 0:01:56]} Be6 {[%emt 0:03:46]} 9. Nd5 {[%emt 0:05:00]} Bxd5 {[%emt 0:06:12] Die Stellung ist ausgeglichen.} 10. exd5 {[%emt 0:01:23]} Nb8 {[%emt 0:00:06]} (10... Qa5+ $1 $11 11. Nc3 Nb4) 11. c4 {[%emt 0:06:52]} O-O {[%emt 0:03:11]} 12. Qd2 {[%emt 0:01:13]} Nh5 {[%emt 0:09:41]} 13. O-O-O {[%emt 0:08:43] Weiß steht aktiver.} Nd7 {[%emt 0:12:20]} (13... f5 $142) 14. g4 $16 {[%emt 0:06:28]} Nf4 {[%emt 0:08:17]} 15. Nxf4 {[%emt 0:03:20]} exf4 {[%emt 0:01:24]} 16. Bxf4 {[%emt 0:00:16]} a5 {[%emt 0:00:02] [#]} (16... Ne5 $16) 17. h4 $1 $18 {[%emt 0:03:52][%mdl 512]} a4 {[%emt 0:07:11]} (17... Re8 18. Kb1) 18. g5 {[%emt 0:08:28]} Nc5 {[%emt 0:03:25]} 19. Be3 {[%emt 0:03:51] Droht stark Bxc5.} Qc8 {[%emt 0:07:48]} 20. Bh3 {[%emt 0:06:25]} Qc7 {[%emt 0:03:00]} 21. Rhe1 {[%emt 0:14:01] Zielt auf Bxc5 ab.} Bd8 {[%emt 0:00:58][%cal Ob7b5]} 22. Kb1 {[%emt 0:01:40]} Qb6 $2 {[%emt 0:04:05]} (22... b5 23. cxb5 Qb8 24. Bxc5 dxc5) 23. Qc2 {[%emt 0:05:19]} Qa7 {[%emt 0:05:18] Schwarz ist schwach auf den weissen Feldern} 24. h5 {[%emt 0:00:40][%cal Bh4h5,Bh5h6][%mdl 32]} Ba5 {[%emt 0:05:09]} 25. Rg1 {[%emt 0:01:19]} Bb6 {[%emt 0:03:10]} 26. Bf5 {[%emt 0:00:40]} Rfe8 {[%emt 0:05:50]} 27. Bxh7+ {[%emt 0:00:40] Das Läuferpaar ist gut.} Kf8 {[%emt 0:00:18][%cal Bg8f8,Bf8g7,Bg7h6][%mdl 32]} 28. Bf4 {[%emt 0:00:57]} Bc7 {[%emt 0:01:36]} 29. h6 {[%emt 0:00:54]} a3 {[%emt 0:00:41]} 30. b3 {[%emt 0:02:08]} (30. hxg7+ $142 Kxg7 31. g6 Ne4 32. gxf7+ (32. fxe4 Qb6 $18) 32... Kxf7 33. Bg6+ (33. fxe4 Qxg1 34. Rxg1 Bb8 35. e5 Ke7 36. Rg7+ Kd8 37. Bg5+ Re7 38. Rxe7 dxe5 39. Qf5 axb2 40. Qf8#) (33. Bxe4 Re5 34. Qh2 Qxg1 35. Rxg1 Rf8 36. Qh7+ Ke8 37. Qxc7 Rxe4 38. Bxd6 axb2 39. Qc8+ Kf7 40. Qxf8#) 33... Kf6 34. Bg5+ (34. fxe4 Bb6 35. e5+ Rxe5 36. Bxe5+ Ke7 37. Qf5 Rf8 38. Qe6+ Kd8 39. Qxd6+ Kc8 40. Qxf8+ Bd8 41. Bf5#) 34... Kg7 35. Bxe8 (35. Bxe4 Qd4 36. Bh4+ Kf8 37. Rxd4 Re5 38. Qg2 Ke8 39. Qg8+ Kd7 40. Rg7+ Re7 41. Rxe7#)) 30... Qb6 {[%emt 0:02:08]} 31. hxg7+ {[%emt 0:00:50] Weiß setzt Matt.} Kxg7 {[%emt 0:00:04]} 32. g6 {[%emt 0:00:18]} f6 {[%emt 0:01:25] [#]} 33. Bh6+ $1 {[%emt 0:00:41][%mdl 512]} Kxh6 {[%emt 0:02:16]} 34. g7 {[%emt 0:00:15][%csl Gg1,Gh7][%cal Rc2g6]} Ne4 {[%emt 0:00:00] Nach der Eröffnung ein Spiel auf ein Tor.   Gewichteter Fehlerwert: Weiß=0.05 (makellos) /Schwarz=0.84.  Fehler:       	---       	Schwarz=4     Ungenau:       	---       	Schwarz=1     OK:         	Weiß=10    	Schwarz=5} 1-0

[Event "Serbian League 2024"]
[Site "Bajina Basta"]
[Date "2024.09.28"]
[Round "2.29"]
[White "Alimpic, Aleksa"]
[Black "Kecskemeti, Arpad"]
[Result "1/2-1/2"]
[ECO "A48"]
[WhiteElo "2253"]
[BlackElo "2236"]
[Annotator "ChessBase"]
[PlyCount "130"]
[EventDate "2024.09.26"]
[EventType "team-tourn"]
[EventCountry "SRB"]
[SourceTitle "playchess.com"]
[Source "ChessBase"]
[SourceQuality "1"]
[TimeControl "40/5400+30:1800+30"]

1. d4 {[%emt 0:00:02]} Nf6 {[%emt 0:03:04]} 2. Nf3 {[%emt 0:00:11]} g6 {[%emt 0:00:15]} 3. Bf4 {[%emt 0:00:09]} Bg7 {[%emt 0:00:30]} 4. c3 {[%emt 0:00:07]} d6 {[%emt 0:00:53]} 5. Nbd2 {[%emt 0:00:21]} Nh5 {[%emt 0:09:06]} 6. Bg5 {[%emt 0:00:11]} h6 {[%emt 0:00:33]} 7. Bh4 {[%emt 0:00:06]} g5 {[%emt 0:00:48]} 8. Bg3 {[%emt 0:00:06]} Nxg3 {[%emt 0:00:36]} 9. hxg3 {[%emt 0:00:05]} Bf5 {[%emt 0:00:31]} 10. e4 {[%emt 0:05:44]} Bg6 {[%emt 0:00:46]} 11. Qc2 {[%emt 0:02:47]} Nd7 {[%emt 0:00:34]} 12. Bd3 {[%emt 0:04:59]} c5 {[%emt 0:01:06]} 13. d5 {[%emt 0:02:06]} Qc7 {[%emt 0:12:09]} 14. a4 {[%emt 0:03:40]} a6 {[%emt 0:09:34]} 15. a5 {[%emt 0:05:23]} Nf6 {[%emt 0:01:59]} 16. Nc4 {[%emt 0:04:29]} O-O {[%emt 0:09:48]} 17. O-O {[%emt 0:00:56]} Rae8 {[%emt 0:06:30]} 18. Rfe1 {[%emt 0:06:10]} Nd7 {[%emt 0:09:40]} 19. Rad1 {[%emt 0:16:44]} e6 {[%emt 0:07:55]} 20. e5 {[%emt 0:04:21]} Bxd3 {[%emt 0:04:56]} 21. Qxd3 {[%emt 0:01:21]} Nxe5 {[%emt 0:03:21]} 22. Nfxe5 {[%emt 0:13:06]} exd5 {[%emt 0:07:51]} 23. Nxd6 {[%emt 0:06:24]} Qxd6 {[%emt 0:07:49]} 24. Qxd5 {[%emt 0:00:44]} Qxd5 {[%emt 0:00:36]} 25. Rxd5 {[%emt 0:00:10]} Re6 {[%emt 0:00:10]} 26. Re3 {[%emt 0:04:52]} Bxe5 {[%emt 0:01:55]} 27. Rexe5 {[%emt 0:00:57]} Rxe5 {[%emt 0:00:03]} 28. Rxe5 {[%emt 0:00:02]} Rc8 {[%emt 0:00:14]} 29. Re7 {[%emt 0:12:25]} Rb8 {[%emt 0:00:13]} 30. b4 {[%emt 0:00:47]} b6 {[%emt 0:00:40]} 31. Ra7 {[%emt 0:02:16]} bxa5 {[%emt 0:00:26]} 32. bxa5 {[%emt 0:00:06]} Rb1+ {[%emt 0:00:27]} 33. Kh2 {[%emt 0:00:03]} Rb3 {[%emt 0:00:40]} 34. Rxa6 {[%emt 0:00:08]} Rxc3 {[%emt 0:00:04]} 35. Rxh6 {[%emt 0:00:18]} Ra3 {[%emt 0:00:34]} 36. a6 {[%emt 0:00:16]} c4 {[%emt 0:00:44]} 37. Rc6 {[%emt 0:00:11]} Kg7 {[%emt 0:01:04]} 38. Kh3 {[%emt 0:03:39]} f5 {[%emt 0:00:19]} 39. Rxc4 {[%emt 0:00:28]} Rxa6 {[%emt 0:00:05]} 40. Kh2 {[%emt 0:00:19]} Ra1 {[%emt 0:01:14]} 41. Rc6 {[%emt 0:30:28]} Kf7 {[%emt 0:30:16]} 42. f3 {[%emt 0:00:33]} Rf1 {[%emt 0:00:00]} 43. Rd6 {[%emt 0:00:00]} Kg7 {[%emt 0:00:00]} 44. Rd4 {[%emt 0:00:00]} Kf6 {[%emt 0:00:00]} 45. g4 {[%emt 0:00:00]} f4 {[%emt 0:00:00]} 46. Rd6+ {[%emt 0:00:00]} Kg7 {[%emt 0:00:00]} 47. Rd3 {[%emt 0:00:00]} Ra1 {[%emt 0:00:00]} 48. g3 {[%emt 0:00:00]} Ra4 {[%emt 0:00:00]} 49. gxf4 {[%emt 0:00:00]} Rxf4 {[%emt 0:00:00]} 50. Kg3 {[%emt 0:00:00]} Kg6 {[%emt 0:00:00]} 51. Rd6+ {[%emt 0:00:00]} Kg7 {[%emt 0:00:00]} 52. Kf2 {[%emt 0:00:00]} Rf8 {[%emt 0:00:00]} 53. Re6 {[%emt 0:00:00]} Rf4 {[%emt 0:00:00]} 54. Ke3 {[%emt 0:00:00]} Rf8 {[%emt 0:00:00]} 55. Re5 {[%emt 0:00:00]} Kg6 {[%emt 0:00:00]} 56. Re6+ {[%emt 0:00:00]} Kg7 {[%emt 0:00:00]} 57. Ke2 {[%emt 0:00:00]} Rf4 {[%emt 0:00:00]} 58. Re3 {[%emt 0:00:00]} Kg6 {[%emt 0:00:00]} 59. Kf2 {[%emt 0:00:00]} Rf6 {[%emt 0:00:00]} 60. Re4 {[%emt 0:00:00]} Rf8 {[%emt 0:00:00]} 61. Kg3 {[%emt 0:00:00]} Rf6 {[%emt 0:00:00]} 62. Ra4 {[%emt 0:00:00]} Rf7 {[%emt 0:00:00]} 63. Ra6+ {[%emt 0:00:00]} Kg7 {[%emt 0:00:00]} 64. Ra4 {[%emt 0:00:00]} Kg6 {[%emt 0:00:00]} 65. f4 {[%emt 0:00:00]} Rxf4 {[%emt 0:00:00]} 1/2-1/2

[Event "Serbian League 2024"]
[Site "Bajina Basta"]
[Date "2024.09.28"]
[Round "2.30"]
[White "Gabric, Goran"]
[Black "Popovic, Milan S"]
[Result "1-0"]
[ECO "B92"]
[WhiteElo "2185"]
[BlackElo "2367"]
[Annotator "ChessBase"]
[PlyCount "91"]
[EventDate "2024.09.26"]
[EventType "team-tourn"]
[EventCountry "SRB"]
[SourceTitle "playchess.com"]
[Source "ChessBase"]
[SourceQuality "1"]
[TimeControl "40/5400+30:1800+30"]

1. e4 {[%emt 0:00:05]} c5 {[%emt 0:00:04]} 2. Nf3 {[%emt 0:00:29]} d6 {[%emt 0:00:06]} 3. d4 {[%emt 0:00:07]} cxd4 {[%emt 0:00:04]} 4. Nxd4 {[%emt 0:00:07]} Nf6 {[%emt 0:00:07]} 5. Nc3 {[%emt 0:00:09]} a6 {[%emt 0:00:05]} 6. Be2 {[%emt 0:04:17]} e5 {[%emt 0:00:59]} 7. Nf3 {[%emt 0:00:29]} Be7 {[%emt 0:05:30]} 8. O-O {[%emt 0:01:33]} O-O {[%emt 0:03:48]} 9. h3 {[%emt 0:00:26]} b5 {[%emt 0:37:01]} 10. Bg5 {[%emt 0:03:42]} Nbd7 {[%emt 0:03:47]} 11. a4 {[%emt 0:21:03]} b4 {[%emt 0:07:37]} 12. Nd5 {[%emt 0:00:44]} Bb7 {[%emt 0:06:43]} 13. Bc4 {[%emt 0:21:28]} Bxd5 {[%emt 0:20:33]} 14. exd5 {[%emt 0:00:49]} Nb6 {[%emt 0:02:43]} 15. Bb3 {[%emt 0:05:42]} a5 {[%emt 0:00:34]} 16. Re1 {[%emt 0:03:39]} Nfd7 {[%emt 0:05:50]} 17. Be3 {[%emt 0:04:25]} Rc8 {[%emt 0:00:40]} 18. Qe2 {[%emt 0:01:29]} Nc5 {[%emt 0:00:37]} 19. Qb5 {[%emt 0:04:58]} Nbd7 {[%emt 0:00:46]} 20. Nd2 {[%emt 0:01:15]} Rb8 {[%emt 0:00:36]} 21. Qe2 {[%emt 0:00:59]} Bg5 {[%emt 0:00:54]} 22. Bxg5 {[%emt 0:01:42]} Qxg5 {[%emt 0:00:02]} 23. Nc4 {[%emt 0:00:11]} Nb7 {[%emt 0:00:16]} 24. Qd2 {[%emt 0:02:27]} Qxd2 {[%emt 0:01:21]} 25. Nxd2 {[%emt 0:00:09]} Nb6 {[%emt 0:00:10]} 26. Bc4 {[%emt 0:01:04]} Rfc8 {[%emt 0:00:44]} 27. b3 {[%emt 0:00:22]} f5 {[%emt 0:00:50]} 28. f4 {[%emt 0:05:39]} e4 {[%emt 0:00:50]} 29. g4 {[%emt 0:00:27]} g6 {[%emt 0:00:25]} 30. Kf2 {[%emt 0:00:47]} Kf7 {[%emt 0:00:33]} 31. gxf5 {[%emt 0:00:50]} gxf5 {[%emt 0:00:01]} 32. Rg1 {[%emt 0:00:11]} Kf6 {[%emt 0:00:26]} 33. Ke3 {[%emt 0:01:20]} Rg8 {[%emt 0:01:18]} 34. Kd4 {[%emt 0:02:50]} Rg6 {[%emt 0:00:01]} 35. h4 {[%emt 0:03:06]} Rbg8 {[%emt 0:00:34]} 36. Rg5 {[%emt 0:00:17]} h6 {[%emt 0:00:10]} 37. Rh5 {[%emt 0:00:29]} Rf8 {[%emt 0:01:31]} 38. Nf1 {[%emt 0:02:14]} Ke7 {[%emt 0:00:34]} 39. Ne3 {[%emt 0:00:17]} Rgf6 {[%emt 0:00:16]} 40. Rg1 {[%emt 0:00:23]} R8f7 {[%emt 0:00:47]} 41. Rg8 {[%emt 0:30:54]} Nc5 {[%emt 0:02:02]} 42. Bb5 {[%emt 0:00:00]} Ncd7 {[%emt 0:01:50]} 43. Rh8 {[%emt 0:00:00]} Nf8 {[%emt 0:01:49]} 44. R5xh6 {[%emt 0:00:00]} Nbd7 {[%emt 0:02:46]} 45. Rxf6 {[%emt 0:00:00]} Rxf6 {[%emt 0:00:03]} 46. Rh5 {[%emt 0:00:00]} 1-0